fUSD/lending_fUSD_20240530
["ID","MTS","AMOUNT","RATE_DAILY","PERIOD"]
[328211381,1717061432740,-500.0,0.00028691,7]
[328211382,1717061432749,-587.12,0.00028691,7]
[328211383,1717061432759,-536.34,0.00028691,7]
[328211384,1717061432768,-196.3477227,0.00028691,2]
[328211385,1717061432778,-670.35,0.00028691,7]
[328211386,1717061432789,-500.0,0.00028691,7]
[328211387,1717061432798,-500.0,0.00028691,7]
[328211388,1717061432807,-500.0,0.00028691,2]
[328211389,1717061432817,-500.0,0.00028691,7]
[328211390,1717061432827,-500.0,0.00028691,7]
[328211391,1717061432837,-495.0,0.00028691,2]
[328211392,1717061432846,-500.0,0.00028691,7]
[328211393,1717061432855,-500.0,0.00028691,7]
[328211394,1717061432864,-500.0,0.00028691,7]
[328211395,1717061432874,-500.0,0.00028691,7]
[328211396,1717061432884,-500.0,0.00028691,7]
[328211397,1717061432894,-500.0,0.00028691,7]
[328211398,1717061432903,-796.67,0.00028691,7]
[328211399,1717061432913,-500.0,0.00028691,7]
[328211400,1717061432922,-500.0,0.00028691,7]
[328211401,1717061432933,-500.0,0.00028691,7]
[328211402,1717061432943,-500.0,0.00028691,7]
[328211403,1717061432953,-500.0,0.00028691,7]
[328211404,1717061432968,-500.0,0.00028691,7]
[328211405,1717061432977,-500.0,0.00028691,7]
[328211406,1717061432986,-500.0,0.00028691,7]
[328211407,1717061432995,-500.0,0.00028691,7]
[328211408,1717061433006,-500.0,0.00028691,7]
[328211409,1717061433015,-500.0,0.00028691,7]
[328211410,1717061433024,-500.0,0.00028691,7]
[328211411,1717061433034,-500.0,0.00028691,7]
[328211412,1717061433046,-500.0,0.00028691,7]
[328211413,1717061433056,-209.56159663,0.00028691,7]
[328211414,1717061433065,-500.0,0.00028691,7]
[328211415,1717061433075,-150.0,0.00028691,7]
[328211416,1717061433084,-520.27,0.00028691,7]
[328211417,1717061433093,-500.0,0.00028691,7]
[328211418,1717061433103,-500.0,0.00028691,7]
[328211419,1717061433112,-500.0,0.00028691,7]
[328211420,1717061433121,-587.46,0.00028691,7]
[328211421,1717061433130,-590.40129636,0.00028691,7]
[328211422,1717061433140,-500.0,0.00028691,7]
[328211423,1717061433149,-500.0,0.00028691,7]
[328211424,1717061433159,-500.0,0.00028691,7]
[328211425,1717061433168,-500.0,0.00028691,7]
[328211426,1717061433178,-781.8,0.00028691,7]
[328211427,1717061433187,-500.0,0.00028691,7]
[328211428,1717061433197,-167.41893806,0.00028691,7]
[328211429,1717061433207,-2751.95,0.00028691,7]
[328211430,1717061433216,-500.0,0.00028691,7]
[328211431,1717061433226,-422.0433147,0.00028691,7]
[328211432,1717061433236,-500.0,0.00028691,7]
[328211433,1717061433245,-503.22281177,0.00028691,7]
[328211434,1717061433255,-626.75,0.00028691,7]
[328211435,1717061433264,-840.93,0.00028691,7]
[328211436,1717061433273,-500.0,0.00028691,7]
[328211437,1717061433283,-509.96790468,0.00028691,7]
[328211438,1717061433293,-500.0,0.00028691,7]
[328211439,1717061433302,-500.0,0.00028691,7]
[328211440,1717061433312,-500.0,0.00028691,7]
[328211441,1717061433322,-824.36,0.00028691,7]
[328211442,1717061433331,-500.0,0.00028691,7]
[328211443,1717061433340,-500.0,0.00028691,7]
[328211444,1717061433349,-500.0,0.00028691,7]
[328211445,1717061433359,-500.0,0.00028691,7]
[328211446,1717061433368,-500.0,0.00028691,7]
[328211447,1717061433378,-500.0,0.00028691,7]
[328211448,1717061433387,-915.11,0.00028691,7]
[328211449,1717061433396,-500.0,0.00028691,7]
[328211450,1717061433405,-500.0,0.00028691,7]
[328211451,1717061433415,-219.00960658,0.00028691,7]
[328211452,1717061433424,-500.0,0.00028691,7]
[328211453,1717061433433,-500.0,0.00028691,7]
[328211454,1717061433443,-500.0,0.00028691,7]
[328211455,1717061433453,-500.0,0.00028691,7]
[328211456,1717061433462,-500.0,0.00028691,7]
[328211457,1717061433471,-500.0,0.00028691,7]
[328211458,1717061433480,-222.16787736,0.00028691,7]
[328211459,1717061433490,-563.45,0.00028691,7]
[328211460,1717061433499,-500.0,0.00028691,7]
[328211461,1717061433509,-500.0,0.00028691,7]
[328211462,1717061433518,-637.09,0.00028691,7]
[328211463,1717061433527,-500.0,0.00028691,7]
[328211464,1717061433537,-477.16603216,0.00028691,7]
[328211465,1717061433546,-500.0,0.00028691,7]
[328211466,1717061433555,-500.0,0.00028691,7]
[328211467,1717061433564,-500.0,0.00028691,7]
[328211468,1717061433574,-721.02,0.00028691,7]
[328211469,1717061433583,-500.0,0.00028691,7]
[328211470,1717061433592,-500.0,0.00028691,7]
[328211471,1717061433602,-500.0,0.00028691,7]
[328211472,1717061433611,-500.0,0.00028691,7]
[328211473,1717061433621,-500.0,0.00028691,7]
[328211474,1717061433630,-500.0,0.00028691,7]
[328211475,1717061433640,-562.97845914,0.00028691,7]
[328211476,1717061433649,-1100.81,0.00028691,7]
[328211477,1717061433659,-500.0,0.00028691,7]
[328211478,1717061433668,-500.0,0.00028691,7]
[328211479,1717061433678,-500.0,0.00028691,7]
[328211480,1717061433687,-1351.03,0.00028691,7]
[328211481,1717061433696,-500.0,0.00028691,7]
[328211482,1717061433707,-500.0,0.00028691,7]
[328211483,1717061433716,-784.94,0.00028691,7]
[328211484,1717061433725,-500.0,0.00028691,7]
[328211485,1717061433734,-500.0,0.00028691,7]
[328211486,1717061433744,-500.0,0.00028691,7]
[328211487,1717061433753,-807.15,0.00028691,7]
[328211488,1717061433763,-500.0,0.00028691,7]
[328211489,1717061433773,-500.0,0.00028691,7]
[328211490,1717061433783,-500.0,0.00028691,7]
[328211491,1717061433792,-500.0,0.00028691,7]
[328211492,1717061433801,-1222.85,0.00028691,7]
[328211493,1717061434025,-500.0,0.00028691,7]
[328211494,1717061434037,-500.0,0.00028691,7]
[328211495,1717061434047,-500.0,0.00028691,7]
[328211496,1717061434057,-500.0,0.00028691,7]
[328211497,1717061434067,-500.0,0.00028691,7]
[328211498,1717061434077,-805.99,0.00028691,7]
[328211499,1717061434086,-500.0,0.00028691,7]
[328211500,1717061434096,-500.0,0.00028691,2]
[328211501,1717061434106,-500.0,0.00028691,7]
[328211502,1717061434115,-500.0,0.00028691,7]
[328211503,1717061434125,-500.0,0.00028691,7]
[328211504,1717061434135,-500.0,0.00028691,7]
[328211505,1717061434145,-1048.87,0.00028691,7]
[328211506,1717061434155,-1649.57,0.00028691,5]
[328211507,1717061434164,-500.0,0.00028691,7]
[328211508,1717061434174,-1183.34,0.00028691,7]
[328211509,1717061434183,-500.0,0.00028691,7]
[328211510,1717061434193,-500.0,0.00028691,7]
[328211511,1717061434207,-500.0,0.00028691,7]
[328211512,1717061434216,-500.0,0.00028691,7]
[328211513,1717061434226,-393.65687086,0.00028691,7]
[328211514,1717061434235,-500.0,0.00028691,7]
[328211515,1717061434244,-688.12,0.00028691,7]
[328211516,1717061434253,-500.0,0.00028691,7]
[328211517,1717061434263,-500.0,0.00028691,7]
[328211518,1717061434272,-1739.92,0.00028691,7]
[328211519,1717061434280,-544.44,0.00028691,7]
[328211520,1717061434290,-718.52,0.00028691,7]
[328211521,1717061434299,-500.0,0.00028691,7]
[328211522,1717061434308,-500.0,0.00028691,7]
[328211523,1717061434318,-308.15,0.00028691,7]
[328211524,1717061434327,-500.0,0.00028691,7]
[328211525,1717061434336,-500.0,0.00028691,7]
[328211526,1717061434346,-500.0,0.00028691,7]
[328211527,1717061434355,-500.0,0.00028691,7]
[328211528,1717061434365,-426.02006685,0.00028691,7]
[328211529,1717061434374,-500.0,0.00028691,7]
[328211530,1717061434383,-500.0,0.00028691,7]
[328211531,1717061434393,-500.0,0.00028691,7]
[328211532,1717061434402,-500.0,0.00028691,7]
[328211533,1717061434411,-500.0,0.00028691,7]
[328211534,1717061434421,-500.0,0.00028691,7]
[328211535,1717061434431,-500.0,0.00028691,7]
[328211536,1717061434441,-500.0,0.00028691,7]
[328211537,1717061434453,-500.0,0.00028691,7]
[328211538,1717061434462,-500.0,0.00028691,7]
[328211539,1717061434471,-500.0,0.00028691,7]
[328211540,1717061434480,-500.0,0.00028691,7]
[328211541,1717061434490,-500.0,0.00028691,7]
[328211542,1717061434499,-500.0,0.00028691,7]
[328211543,1717061434508,-583.54079812,0.00028691,7]
[328211544,1717061434518,-500.0,0.00028691,7]
[328211545,1717061434527,-500.0,0.00028691,7]
[328211546,1717061434537,-501.3579231,0.00028691,7]
[328211547,1717061434546,-500.0,0.00028691,2]
[328211548,1717061434555,-500.0,0.00028691,7]
[328211549,1717061434564,-500.0,0.00028691,7]
[328211550,1717061434574,-169.84566858,0.00028691,7]
[328211551,1717061434583,-500.0,0.00028691,7]
[328211552,1717061434593,-500.0,0.00028691,7]
[328211553,1717061434603,-500.0,0.00028691,7]
[328211554,1717061434612,-500.0,0.00028691,7]
[328211555,1717061434622,-471.22107179,0.00028691,7]
[328211556,1717061434638,-28.77892821,0.00028691,7]
[328211557,1717061434647,-583.8737945,0.00028691,7]
[328211558,1717061434656,-500.0,0.00028691,7]
[328211559,1717061434666,-500.0,0.00028691,7]
[328211560,1717061434676,-646.95797785,0.00028691,7]
[328211561,1717061434685,-500.0,0.00028691,7]
[328211562,1717061434695,-500.0,0.00028691,7]
[328211563,1717061434708,-500.0,0.00028691,7]
[328211564,1717061434717,-500.0,0.00028691,7]
[328211565,1717061434727,-207.58824107,0.00028691,2]
[328211566,1717061434737,-483.51238099,0.00028691,2]
[328211567,1717061434747,-155.24605476,0.00028691,2]
[328211568,1717061434757,-447.02786322,0.00028691,2]
[328211569,1717061434767,-208.74146462,0.00028691,2]
[328211570,1717061434776,-182.34053557,0.00028691,2]
[328211571,1717061434785,-307.733995,0.00028691,2]
[328211572,1717061434795,-325.91037702,0.00028692,2]
[328211573,1717061434804,-1967.86491111,0.00028692,2]
[328211574,1717061434816,-6757.8162763,0.00028692,2]
[328211575,1717061434827,-2112.18078932,0.00028692,2]
[328211576,1717061434839,-8511.0000002,0.00028692,2]
[328211577,1717061434892,-696.74376921,0.00028692,2]
[328211578,1717061434903,-840.52331929,0.00028692,2]
[328211579,1717061434914,-9069.68526518,0.00028692,2]
[328211580,1717061434933,-1540.32016939,0.00028692,2]
[328211581,1717061434943,-3600.68179979,0.00028692,2]
[328211582,1717061436661,155.91,0.00013973,2]
[328211586,1717061437781,-155.0,0.00017257,2]
[328211587,1717061437791,-150.0,0.00028069,2]
[328211588,1717061437801,-150.0,0.0002813,2]
[328211589,1717061437811,-1208.66909841,0.00028692,2]
[328211590,1717061437824,-1008.95516832,0.00028692,2]
[328211591,1717061437836,-1106.76029398,0.00028692,2]
[328211592,1717061437894,-283.06741667,0.00028692,2]
[328211593,1717061438011,-255.06953445,0.00028692,2]
[328211594,1717061438022,-44722.64434859,0.00028692,2]
[328211595,1717061438128,-953.23988846,0.00028692,2]
[328211596,1717061438140,-7579.90085133,0.00028692,2]
[328211597,1717061438150,-26048.89383436,0.00028692,2]
[328211598,1717061438160,-1349.50010889,0.00028692,2]
[328211599,1717061438172,-1075.02955595,0.00028692,2]
[328211605,1717061440668,-500.0,0.00028691,7]
[328211606,1717061440678,-500.0,0.00028691,7]
[328211607,1717061440687,-95141.4349008,0.00028692,2]
[328211608,1717061440697,-12906.3377,0.00028693,2]
[328211609,1717061440709,-150.0,0.00028788,2]
[328211610,1717061440718,-490.94752817,0.00028791,2]
[328211611,1717061440728,-265.82841152,0.00028791,2]
[328211612,1717061440738,-500.0,0.00028792,7]
[328211613,1717061440747,-500.0,0.00028792,7]
[328211614,1717061440757,-500.0,0.00028792,7]
[328211615,1717061440767,-500.0,0.00028792,7]
[328211616,1717061440776,-500.0,0.00028792,7]
[328211617,1717061440786,-500.0,0.00028792,7]
[328211618,1717061440795,-500.0,0.00028792,7]
[328211619,1717061440805,-500.0,0.00028792,7]
[328211620,1717061440816,-500.0,0.00028792,7]
[328211621,1717061440825,-500.0,0.00028792,7]
[328211622,1717061440835,-534.33,0.00028792,7]
[328211623,1717061440844,-500.0,0.00028792,7]
[328211624,1717061440853,-500.0,0.00028792,7]
[328211625,1717061440863,-500.0,0.00028792,7]
[328211626,1717061440874,-500.0,0.00028792,7]
[328211627,1717061440887,-500.0,0.00028792,7]
[328211628,1717061440900,-500.0,0.00028792,7]
[328211629,1717061440914,-500.0,0.00028792,7]
[328211630,1717061440926,-1000.0,0.00028792,2]
[328211631,1717061440939,-1000.0,0.00028792,2]
[328211632,1717061440950,-1000.0,0.00028792,2]
[328211633,1717061440961,-1000.0,0.00028792,2]
[328211634,1717061440975,-1000.0,0.00028792,2]
[328211635,1717061440987,-1000.0,0.00028792,2]
[328211636,1717061440998,-1000.0,0.00028792,2]
[328211637,1717061441010,-1000.0,0.00028792,2]
[328211638,1717061441021,-1000.0,0.00028792,2]
[328211639,1717061441033,-1000.0,0.00028792,2]
[328211640,1717061441046,-1000.0,0.00028792,2]
[328211641,1717061441058,-1000.0,0.00028792,2]
[328211642,1717061441069,-500.0,0.00028793,2]
[328211643,1717061441081,-500.0,0.00028793,7]
[328211644,1717061441094,-150.0,0.0002884,2]
[328211645,1717061441106,-150.0,0.00028923,2]
[328211646,1717061441118,-500.0,0.00028965,7]
[328211647,1717061441129,-211.1785982,0.00028965,7]
[328211648,1717061441141,-500.0,0.00028965,7]
[328211649,1717061441153,-588.27395707,0.00028965,7]
[328211650,1717061441165,-653.27,0.00028965,7]
[328211651,1717061441177,-500.0,0.00028965,7]
[328211652,1717061441187,-500.0,0.00028965,7]
[328211653,1717061441198,-500.0,0.00028965,7]
[328211654,1717061441212,-500.0,0.00028965,7]
[328211655,1717061441225,-545.45,0.00028965,7]
[328211656,1717061441239,-500.0,0.00028965,7]
[328211657,1717061441250,-676.64,0.00028965,7]
[328211658,1717061441261,-620.3,0.00028965,7]
[328211659,1717061441271,-500.0,0.00028965,7]
[328211660,1717061441281,-500.0,0.00028965,7]
[328211661,1717061441291,-500.0,0.00028965,7]
[328211662,1717061441302,-737.64,0.00028965,7]
[328211663,1717061441313,-500.0,0.00028965,7]
[328211664,1717061441323,-500.0,0.00028965,7]
[328211665,1717061441334,-587.12,0.00028965,7]
[328211666,1717061441346,-536.34,0.00028965,7]
[328211667,1717061441357,-670.35,0.00028965,7]
[328211668,1717061441369,-500.0,0.00028965,7]
[328211669,1717061441379,-500.0,0.00028965,7]
[328211670,1717061441391,-500.0,0.00028965,2]
[328211671,1717061441403,-500.0,0.00028965,7]
[328211672,1717061441415,-500.0,0.00028965,7]
[328211673,1717061441427,-500.0,0.00028965,7]
[328211674,1717061441439,-500.0,0.00028965,7]
[328211675,1717061441450,-500.0,0.00028965,7]
[328211676,1717061441460,-500.0,0.00028965,7]
[328211677,1717061441469,-500.0,0.00028965,7]
[328211678,1717061441479,-500.0,0.00028965,7]
[328211679,1717061441489,-796.67,0.00028965,7]
[328211680,1717061441500,-500.0,0.00028965,7]
[328211681,1717061441510,-500.0,0.00028965,7]
[328211682,1717061441521,-500.0,0.00028965,7]
[328211683,1717061441533,-500.0,0.00028965,7]
[328211684,1717061441544,-500.0,0.00028965,7]
[328211685,1717061441555,-500.0,0.00028965,7]
[328211686,1717061441565,-500.0,0.00028965,7]
[328211687,1717061441574,-500.0,0.00028965,7]
[328211688,1717061441584,-500.0,0.00028965,7]
[328211689,1717061441595,-500.0,0.00028965,7]
[328211690,1717061441605,-500.0,0.00028965,7]
[328211691,1717061441616,-500.0,0.00028965,7]
[328211692,1717061441628,-500.0,0.00028965,7]
[328211693,1717061441638,-500.0,0.00028965,7]
[328211694,1717061441648,-500.0,0.00028965,7]
[328211695,1717061441658,-150.0,0.00028965,7]
[328211696,1717061441669,-520.27,0.00028965,7]
[328211697,1717061441678,-500.0,0.00028965,7]
[328211698,1717061441688,-500.0,0.00028965,7]
[328211699,1717061441698,-500.0,0.00028965,7]
[328211700,1717061441710,-587.46,0.00028965,7]
[328211701,1717061441720,-500.0,0.00028965,7]
[328211702,1717061441731,-500.0,0.00028965,7]
[328211703,1717061441743,-520.32843071,0.00028965,7]
[328211704,1717061441753,-500.0,0.00028965,7]
[328211705,1717061441763,-781.8,0.00028965,7]
[328211706,1717061441773,-530.6801678,0.00028965,7]
[328211707,1717061441784,-2751.95,0.00028965,7]
[328211708,1717061441794,-638.18429457,0.00028965,7]
[328211709,1717061441804,-500.0,0.00028965,7]
[328211710,1717061441815,-626.75,0.00028965,7]
[328211711,1717061441825,-840.93,0.00028965,7]
[328211712,1717061441836,-355.51982937,0.00028965,7]
[328211713,1717061441847,-546.04100367,0.00028965,7]
[328211714,1717061441858,-500.0,0.00028965,7]
[328211715,1717061441869,-500.0,0.00028965,7]
[328211716,1717061441879,-824.36,0.00028965,7]
[328211717,1717061441889,-500.0,0.00028965,7]
[328211718,1717061441900,-500.0,0.00028965,7]
[328211721,1717061441910,-500.0,0.00028965,7]
[328211723,1717061441921,-500.0,0.00028965,7]
[328211725,1717061441931,-500.0,0.00028965,7]
[328211727,1717061441941,-500.0,0.00028965,7]
[328211729,1717061441952,-500.0,0.00028965,7]
[328211731,1717061441968,-500.0,0.00028965,7]
[328211734,1717061441978,-500.0,0.00028965,7]
[328211736,1717061441988,-500.0,0.00028965,7]
[328211738,1717061441999,-500.0,0.00028965,7]
[328211740,1717061442011,-500.0,0.00028965,7]
[328211742,1717061442022,-563.45,0.00028965,7]
[328211744,1717061442033,-500.0,0.00028965,7]
[328211746,1717061442043,-500.0,0.00028965,7]
[328211749,1717061442055,-637.09,0.00028965,7]
[328211751,1717061442065,-500.0,0.00028965,7]
[328211753,1717061442075,-224.88825947,0.00028965,7]
[328211755,1717061442086,-500.0,0.00028965,7]
[328211757,1717061442095,-721.02,0.00028965,7]
[328211759,1717061442106,-500.0,0.00028965,7]
[328211761,1717061442117,-500.0,0.00028965,7]
[328211763,1717061442127,-500.0,0.00028965,7]
[328211766,1717061442137,-500.0,0.00028965,7]
[328211768,1717061442148,-500.0,0.00028965,7]
[328211770,1717061442158,-500.0,0.00028965,7]
[328211771,1717061442169,-1100.81,0.00028965,7]
[328211772,1717061442179,-500.0,0.00028965,7]
[328211773,1717061442190,-500.0,0.00028965,7]
[328211774,1717061442202,-500.0,0.00028965,7]
[328211775,1717061442212,-1351.03,0.00028965,7]
[328211776,1717061442223,-500.0,0.00028965,7]
[328211777,1717061442235,-500.0,0.00028965,7]
[328211778,1717061442245,-784.94,0.00028965,7]
[328211779,1717061442256,-500.0,0.00028965,7]
[328211780,1717061442266,-500.0,0.00028965,7]
[328211781,1717061442278,-500.0,0.00028965,7]
[328211782,1717061442289,-807.15,0.00028965,7]
[328211783,1717061442299,-500.0,0.00028965,7]
[328211784,1717061442311,-500.0,0.00028965,7]
[328211785,1717061442321,-500.0,0.00028965,7]
[328211786,1717061442332,-500.0,0.00028965,7]
[328211787,1717061442344,-1222.85,0.00028965,7]
[328211788,1717061442356,-500.0,0.00028965,7]
[328211789,1717061442367,-500.0,0.00028965,7]
[328211790,1717061442378,-500.0,0.00028965,7]
[328211791,1717061442390,-500.0,0.00028965,7]
[328211792,1717061442400,-500.0,0.00028965,7]
[328211793,1717061442411,-805.99,0.00028965,7]
[328211794,1717061442421,-500.0,0.00028965,7]
[328211795,1717061442431,-500.0,0.00028965,2]
[328211796,1717061442442,-392.79144438,0.00028965,7]
[328211797,1717061442780,-150.0,0.0002836,2]
[328211798,1717061442790,-107.20855562,0.00028965,7]
[328211799,1717061442800,-222.43144437,0.00028965,7]
[328211800,1717061442811,-277.56855563,0.00028965,7]
[328211801,1717061442821,-84.92644437,0.00028965,7]
[328211802,1717061442833,-415.07355563,0.00028965,7]
[328211804,1717061442842,-500.0,0.00028965,7]
[328211805,1717061443123,-1048.87,0.00028965,7]
[328211806,1717061443138,-1649.57,0.00028965,5]
[328211807,1717061443148,-253.16440145,0.00028965,7]
[328211808,1717061443158,-248.1903199,0.00028965,7]
[328211809,1717061443170,-251.8096801,0.00028965,7]
[328211810,1717061443179,-1183.34,0.00028965,7]
[328211811,1717061443189,-500.0,0.00028965,7]
[328211812,1717061443198,-500.0,0.00028965,7]
[328211813,1717061443210,-500.0,0.00028965,7]
[328211814,1717061443219,-500.0,0.00028965,7]
[328211815,1717061443229,-583.94159952,0.00028965,7]
[328211816,1717061443240,-104.17840048,0.00028965,7]
[328211817,1717061443250,-211.42159952,0.00028965,7]
[328211818,1717061443265,-288.57840048,0.00028965,7]
[328211819,1717061443274,-1739.92,0.00028965,7]
[328211820,1717061443283,-544.44,0.00028965,7]
[328211821,1717061443292,-718.52,0.00028965,7]
[328211822,1717061443302,-500.0,0.00028965,7]
[328211823,1717061443311,-500.0,0.00028965,7]
[328211824,1717061443319,-500.0,0.00028965,7]
[328211825,1717061443328,-500.0,0.00028965,7]
[328211826,1717061443337,-500.0,0.00028965,7]
[328211827,1717061443346,-500.0,0.00028965,7]
[328211828,1717061443355,-477.98982051,0.00028965,7]
[328211829,1717061443364,-500.0,0.00028965,7]
[328211830,1717061443373,-500.0,0.00028965,7]
[328211831,1717061443383,-500.0,0.00028965,7]
[328211832,1717061443392,-500.0,0.00028965,7]
[328211833,1717061443401,-500.0,0.00028965,7]
[328211834,1717061443410,-500.0,0.00028965,7]
[328211835,1717061443419,-500.0,0.00028965,7]
[328211836,1717061443428,-562.1869375,0.00028965,7]
[328211837,1717061443437,-500.0,0.00028965,7]
[328211838,1717061443446,-500.0,0.00028965,7]
[328211839,1717061443456,-500.0,0.00028965,7]
[328211840,1717061443465,-472.87727524,0.00028965,7]
[328211841,1717061443474,-500.0,0.00028965,7]
[328211842,1717061443483,-566.31122591,0.00028965,7]
[328211843,1717061443492,-569.70858972,0.00028965,7]
[328211844,1717061443501,-500.0,0.00028965,7]
[328211845,1717061443511,-500.0,0.00028965,2]
[328211846,1717061443519,-500.0,0.00028965,7]
[328211847,1717061443530,-500.0,0.00028965,7]
[328211848,1717061443539,-500.0,0.00028965,7]
[328211849,1717061443548,-500.0,0.00028965,7]
[328211850,1717061443557,-500.0,0.00028965,7]
[328211851,1717061443567,-500.0,0.00028965,7]
[328211852,1717061443576,-500.0,0.00028965,7]
[328211853,1717061443585,-500.0,0.00028965,7]
[328211854,1717061443594,-612.56,0.00028965,7]
[328211856,1717061443603,-500.0,0.00028965,7]
[328211858,1717061443613,-500.0,0.00028965,7]
[328211859,1717061443622,-500.0,0.00028965,7]
[328211860,1717061443631,-404.35016562,0.00028965,7]
[328211861,1717061443640,-500.0,0.00028965,7]
[328211862,1717061443649,-500.0,0.00028965,7]
[328211863,1717061443659,-7500.0,0.00028966,2]
[328211864,1717061443668,-150.0,0.00029005,2]
[328211865,1717061443677,-234.1947747,0.00029064,2]
[328211866,1717061443686,-248.62293251,0.00029066,2]
[328211867,1717061443695,-210.28539183,0.00029066,2]
[328211868,1717061443707,-500.0,0.00029066,7]
[328211869,1717061443717,-500.0,0.00029066,7]
[328211871,1717061443726,-500.0,0.00029066,7]
[328211873,1717061443735,-500.0,0.00029066,7]
[328211875,1717061443744,-500.0,0.00029066,7]
[328211877,1717061443753,-500.0,0.00029066,7]
[328211879,1717061443762,-500.0,0.00029066,7]
[328211881,1717061443772,-500.0,0.00029066,7]
[328211883,1717061443781,-500.0,0.00029066,7]
[328211885,1717061443790,-534.33,0.00029066,7]
[328211887,1717061443799,-500.0,0.00029066,7]
[328211889,1717061443808,-500.0,0.00029066,7]
[328211891,1717061443817,-500.0,0.00029066,7]
[328211893,1717061443826,-500.0,0.00029066,7]
[328211895,1717061443835,-500.0,0.00029066,7]
[328211897,1717061443845,-500.0,0.00029066,7]
[328211899,1717061443854,-500.0,0.00029066,7]
[328211901,1717061443863,-165.12448598,0.00029067,2]
[328211903,1717061443875,-334.87551402,0.00029067,2]
[328211905,1717061443884,-1000.12448598,0.00029104,2]
[328211907,1717061443895,-1241.78770248,0.00029104,2]
[328211909,1717061443907,-2410.67799997,0.00029104,2]
[328211910,1717061443963,-1047.2,0.00028592,2]
[328211911,1717061443974,-3060.76307793,0.00028592,2]
[328211912,1717061444081,-150.0,0.00028454,2]
[328211913,1717061444090,-142.5,0.00028592,2]
[328211914,1717061444101,-500.0,0.00028592,2]
[328211915,1717061444124,-3337.5,0.00028592,2]
[328211916,1717061444135,-733.0753,0.00028592,2]
[328211917,1717061444150,-1068.30517577,0.00028592,2]
[328211918,1717061444161,-1186.86638356,0.00028592,2]
[328211919,1717061444176,-3543.4581044,0.00028592,2]
[328211920,1717061444187,-758.19771398,0.00028592,2]
[328211921,1717061444199,-1704.8742,0.00028592,2]
[328211922,1717061444211,-1400.59695513,0.00028592,2]
[328211923,1717061444221,-500.0,0.00028592,2]
[328211926,1717061446018,-155.69003604,0.00028359,2]
[328211927,1717061446027,-3063.85633116,0.00028592,2]
[328211928,1717061446041,-636.93534602,0.00028592,2]
[328211929,1717061446134,-5956.52448997,0.00028592,2]
[328211930,1717061446145,-1899.15,0.00028592,2]
[328211931,1717061446156,-1604.0647606,0.00028592,2]
[328211932,1717061446168,-12882.29286148,0.00028592,2]
[328211933,1717061446178,-107.27207601,0.00029104,2]
[328211934,1717061446187,-292.21,0.00029171,2]
[328211935,1717061446196,-166.95721548,0.00029239,7]
[328211936,1717061446208,-500.0,0.00029239,7]
[328211937,1717061446220,-653.27,0.00029239,7]
[328211938,1717061446229,-500.0,0.00029239,7]
[328211939,1717061446238,-500.0,0.00029239,7]
[328211940,1717061446248,-500.0,0.00029239,7]
[328211941,1717061446257,-593.38277998,0.00029239,7]